bitfinex/quotes_SOLUSD_20251119
["timestamp","ask_amount","ask_price","bid_price","bid_amount"]
[1763516332979,10.43882769,141.11,141.03,0.88]
[1763516333194,9.78882769,141.09,141.03,0.88]
[1763516333402,14.02882769,141.08,141.04,0.68]
[1763516333589,9.78882769,141.09,141.07,5.36660541]
[1763516333775,4.24,141.09,141.08,5.36660541]
[1763516334103,14.02882769,141.11,141.08,5.36660541]
[1763516334286,14.02882769,141.11,141.08,0.68]
[1763516334475,14.02882769,141.11,141.07,18.12096]
[1763516334801,14.67882769,141.11,141.06,18.12096]
[1763516335102,10.43882769,141.1,141.08,5.36660541]
[1763516335401,10.43882769,141.1,141.09,5.36660541]
[1763516335584,9.78882769,141.1,141.09,5.36660541]
[1763516338300,10.43882769,141.1,141.09,5.36660541]
[1763516338501,10.43882769,141.1,141.08,5.36660541]
[1763516338502,9.78882769,141.09,141.08,5.36660541]
[1763516338691,9.78882769,141.09,141.04,18.12096]
[1763516338692,10.43882769,141.09,141.04,18.12096]
[1763516339011,4.89,141.08,141.07,5.36660541]
[1763516339218,4.24,141.08,141.07,5.36660541]
[1763516341028,9.78882769,141.09,141.03,19.00096]
[1763516341183,9.78882769,141.07,141.06,5.36660541]
[1763516341516,4.24,141.07,141.03,18.32096]
[1763516341719,4.24,141.07,141.04,5.36660541]
[1763516341884,4.24,141.07,141.05,5.36660541]
[1763516342084,4.24,141.07,141.06,5.36660541]
[1763516342404,4.89,141.07,141.05,5.36660541]
[1763516342781,4.24,141.07,141.06,5.36660541]
[1763516342983,0.65,141.12,141.06,5.36660541]
[1763516343184,14.02882769,141.11,141.1,5.36660541]
[1763516343586,14.67882769,141.11,141.1,5.36660541]
[1763516344311,20.0454331,141.11,141.03,0.2]
[1763516344527,15.1554331,141.08,141.03,5.56660541]
[1763516344723,4.24,141.07,141.06,5.36660541]
[1763516345100,14.02882769,141.09,141.06,5.36660541]
[1763516345305,14.02882769,141.09,141.08,5.36660541]
[1763516345927,4.24,141.09,141.08,5.36660541]
[1763516346099,14.02882769,141.11,141.08,0.68]
[1763516346300,14.02882769,141.11,141.09,5.36660541]
[1763516346499,9.78882769,141.1,141.09,5.36660541]
[1763516346814,9.78882769,141.1,141.06,0.68]
[1763516347008,9.78882769,141.1,141.09,5.36660541]
[1763516347700,9.78882769,141.15,141.09,6.04660541]
[1763516347907,5.36660541,141.18,141.13,5.36660541]
[1763516348125,0.65,141.15,141.13,5.36660541]
[1763516348304,4.24,141.14,141.12,5.36660541]
[1763516348625,14.67882769,141.14,141.12,5.36660541]
[1763516348824,14.02882769,141.14,141.13,5.36660541]
[1763516349136,0.65,141.13,141.11,5.36660541]
[1763516349821,0.65,141.13,141.1,5.36660541]
[1763516350429,0.65,141.13,141.12,5.36660541]
[1763516350430,9.78882769,141.13,141.12,5.36660541]
[1763516351025,10.43882769,141.13,141.07,18.12096]
[1763516351226,10.43882769,141.13,141.1,5.36660541]
[1763516351605,0.65,141.12,141.09,5.36660541]
[1763516351819,4.24,141.11,141.09,5.36660541]
[1763516352520,4.91,141.11,141.09,5.36660541]
[1763516353413,14.02882769,141.11,141.1,5.36660541]
[1763516354220,14.69882769,141.11,141.1,5.36660541]
[1763516354636,14.02882769,141.11,141.1,5.36660541]
[1763516355137,4.24,141.11,141.1,5.36660541]
[1763516355428,9.78882769,141.17,141.1,5.36660541]
[1763516355607,9.78882769,141.13,141.1,5.36660541]
[1763516355811,14.02882769,141.13,141.11,5.36660541]
[1763516356014,14.69882769,141.13,141.11,5.36660541]
[1763516356723,0.67,141.12,141.07,18.12096]
[1763516356919,18.7719199,141.11,141.05,8.98309221]
[1763516357119,18.7719199,141.09,141.03,9.18309221]
[1763516357432,18.7719199,141.09,141.04,8.98309221]
[1763516357433,9.78882769,141.07,141.04,8.98309221]
[1763516357628,4.24,141.06,141.04,8.98309221]
[1763516357830,4.24,141.06,141.03,0.2]
[1763516358028,4.24,141.06,141.04,8.98309221]
[1763516358229,14.02882769,141.06,141.05,8.98309221]
[1763516358528,14.02882769,141.06,141.03,0.2]
[1763516358529,14.69882769,141.06,141.04,8.98309221]
[1763516358720,0.67,141.05,141.04,8.98309221]
[1763516358919,14.69882769,141.06,141.04,8.98309221]
[1763516360938,4.24,141.08,141.05,8.98309221]
[1763516361110,14.02882769,141.08,141.07,8.98309221]
[1763516361511,9.78882769,141.07,141.03,0.2]
[1763516361707,9.65309221,141.06,141.03,0.2]
[1763516361933,18.7719199,141.04,141.0,0.2]
[1763516362249,18.7719199,141.01,141.0,0.2]
[1763516362550,28.43453646,141.01,140.97,0.2]
[1763516362847,18.7719199,140.98,140.97,0.2]
[1763516363015,27.71349714,140.98,140.97,0.2]
[1763516363342,23.7319199,140.98,140.97,0.2]
[1763516363520,28.42869249,140.98,140.97,0.2]
[1763516364835,46.54965249,140.98,140.92,0.2]
[1763516365038,9.78882769,140.93,140.92,0.2]
[1763516365238,5.41677259,140.97,140.92,9.18309221]
[1763516365239,0.72,140.97,140.92,9.18309221]
[1763516365542,4.24,140.96,140.94,8.98309221]
[1763516366227,4.96,140.96,140.94,8.98309221]
[1763516367014,9.78882769,140.94,140.92,9.18309221]
[1763516367212,4.24,140.93,140.92,9.18309221]
[1763516367436,14.74882769,140.93,140.92,0.2]
[1763516367629,23.7319199,140.93,140.92,0.2]
[1763516367843,18.7719199,140.92,140.86,8.98309221]
[1763516368020,18.7719199,140.9,140.82,0.2]
[1763516368214,9.78882769,140.88,140.83,8.98309221]
[1763516368414,18.7719199,140.88,140.82,9.18309221]
[1763516368737,18.7719199,140.86,140.82,0.2]
[1763516368938,0.72,140.87,140.82,0.2]
[1763516368939,9.78882769,140.84,140.82,0.2]
[1763516369242,9.78882769,140.83,140.82,0.2]
[1763516370548,9.78882769,140.83,140.82,9.18309221]
[1763516370958,4.24,140.84,140.82,9.88309221]
[1763516371254,4.26,140.86,140.83,9.68309221]
[1763516371430,9.78882769,140.88,140.85,8.98309221]
[1763516371754,14.04882769,140.88,140.84,0.7]
[1763516371940,14.04882769,140.88,140.86,8.98309221]
[1763516372831,14.04882769,140.88,140.87,8.98309221]
[1763516373230,14.04882769,140.88,140.84,0.7]
[1763516373436,0.72,140.95,140.87,8.98309221]
[1763516373634,4.26,140.94,140.92,8.98309221]
[1763516373942,0.72,140.93,140.91,8.98309221]
[1763516374138,9.78882769,140.93,140.91,8.98309221]
[1763516374454,9.78882769,140.91,140.89,8.98309221]
[1763516374969,0.72,140.91,140.88,8.98309221]
[1763516375135,9.78882769,140.89,140.87,8.98309221]
[1763516375726,9.78882769,140.89,140.85,18.82096]
[1763516375727,14.04882769,140.92,140.88,9.68309221]
[1763516375959,14.04882769,140.92,140.9,8.98309221]
[1763516376259,14.76882769,140.92,140.9,8.98309221]
[1763516376432,14.04882769,140.92,140.91,8.98309221]
[1763516376633,14.04882769,140.92,140.9,8.98309221]
[1763516377673,14.04882769,140.92,140.82,4.46]
[1763516377674,9.78882769,140.94,140.91,8.98309221]
[1763516377831,9.78882769,140.94,140.88,18.12096]
[1763516377832,10.50882769,140.94,140.88,18.12096]
[1763516378187,9.78882769,140.92,140.9,8.98309221]
[1763516378334,4.26,140.91,140.9,8.98309221]
[1763516379164,4.26,140.91,140.88,18.12096]
[1763516379457,4.26,140.91,140.9,8.98309221]
[1763516380356,4.26,140.93,140.9,8.98309221]
[1763516380536,9.78882769,140.94,140.92,8.98309221]
[1763516380731,4.26,140.94,140.93,8.98309221]
[1763516381637,9.78882769,140.95,140.93,8.98309221]
[1763516381837,9.78882769,140.95,140.94,8.98309221]
[1763516382264,9.78882769,140.95,140.93,8.98309221]
[1763516382458,9.78882769,140.95,140.94,8.98309221]
[1763516382656,9.78882769,140.95,140.91,18.82096]
[1763516382852,9.78882769,140.95,140.94,8.98309221]
[1763516383064,4.26,140.96,140.94,8.98309221]
[1763516383362,4.26,140.96,140.95,8.98309221]
[1763516384446,9.78882769,140.97,140.95,8.98309221]
[1763516384862,4.26,140.98,140.95,8.98309221]
[1763516385176,14.04882769,140.98,140.97,8.98309221]
[1763516385983,0.69,141.03,140.97,9.70309221]
[1763516386173,14.71882769,141.02,141.0,8.98309221]
[1763516386478,4.26,141.01,140.99,8.98309221]
[1763516386650,4.26,141.01,141.0,8.98309221]
[1763516387459,14.04882769,141.01,141.0,8.98309221]
[1763516387853,0.69,141.07,141.0,9.70309221]
[1763516388056,0.69,141.07,141.05,8.98309221]
[1763516388268,14.02882769,141.06,141.05,8.98309221]
[1763516389057,9.78882769,141.05,141.02,8.98309221]
[1763516389355,10.47882769,141.05,141.02,8.98309221]
[1763516390278,10.47882769,141.05,140.98,0.72]
[1763516390473,10.47882769,141.05,141.03,8.98309221]
[1763516393280,10.47882769,141.05,141.04,8.98309221]
[1763516393857,10.47882769,141.05,141.03,8.98309221]
[1763516395265,9.78882769,141.05,141.04,8.98309221]
[1763516395479,4.24,141.06,141.04,8.98309221]
[1763516395657,4.93,141.06,141.05,8.98309221]
[1763516395854,4.93,141.06,141.04,8.98309221]
[1763516397585,0.69,141.05,141.03,8.98309221]
[1763516401186,9.78882769,141.04,140.97,0.72]
[1763516401387,9.78882769,141.02,140.99,8.98309221]
[1763516401574,9.78882769,141.02,140.98,8.98309221]
[1763516401773,9.78882769,141.0,140.97,8.98309221]
[1763516401982,9.78882769,140.98,140.97,8.98309221]
[1763516402178,9.78882769,140.98,140.92,0.72]
[1763516402376,9.78882769,140.98,140.9,4.24]
[1763516402377,9.78882769,140.96,140.94,8.98309221]
[1763516402568,9.78882769,140.94,140.93,8.98309221]
[1763516402768,14.02882769,140.94,140.93,8.98309221]
[1763516403795,14.71882769,140.94,140.91,8.98309221]
[1763516404092,9.78882769,140.92,140.88,18.84096]
[1763516404293,9.78882769,140.92,140.91,8.98309221]
[1763516407998,4.24,140.94,140.91,8.98309221]
[1763516408189,9.78882769,140.93,140.89,0.72]
[1763516408498,4.24,140.94,140.89,0.72]
[1763516408499,4.24,140.94,140.92,8.98309221]
[1763516408689,4.24,140.94,140.89,0.72]
[1763516409071,4.24,140.94,140.89,18.84096]
[1763516409297,0.69,140.93,140.89,18.84096]
[1763516409489,4.24,140.94,140.88,4.24]
[1763516409490,4.24,140.94,140.9,0.72]
[1763516409691,14.02882769,140.94,140.93,8.98309221]
[1763516410708,0.69,140.98,140.93,9.70309221]
[1763516410883,0.69,140.99,140.97,8.98309221]
[1763516411079,9.78882769,140.99,140.98,8.98309221]
[1763516413705,9.78882769,140.98,140.96,8.98309221]
[1763516414010,9.78882769,140.96,140.95,8.98309221]
[1763516414790,9.78882769,140.99,140.95,9.69309221]
[1763516415011,9.78882769,140.99,140.98,8.98309221]
[1763516416812,9.78882769,140.99,140.98,5.38148743]
[1763516417015,10.44882769,140.99,140.98,5.38148743]
[1763516417183,10.44882769,140.99,140.96,5.38148743]
[1763516417384,0.66,140.98,140.94,5.38148743]
[1763516417595,9.78882769,140.96,140.94,5.38148743]
[1763516417796,10.44882769,140.95,140.94,5.38148743]
[1763516421929,9.78882769,140.95,140.94,5.38148743]
[1763516422442,10.48882769,140.95,140.94,5.38148743]
[1763516422826,9.78882769,140.94,140.9,0.71]
[1763516423020,14.02882769,140.94,140.93,5.38148743]
[1763516423521,0.7,140.97,140.93,5.38148743]
[1763516423834,14.02882769,140.96,140.95,5.38148743]
[1763516424513,14.72882769,140.96,140.95,5.38148743]
[1763516425614,14.02882769,140.96,140.95,5.38148743]
[1763516425913,14.72882769,140.96,140.95,5.38148743]
[1763516426116,14.02882769,140.96,140.95,5.38148743]
[1763516426317,0.7,141.03,140.95,6.10148743]
[1763516426542,0.7,141.06,141.02,5.38148743]
[1763516426747,23.06096,141.05,141.02,5.38148743]
[1763516426938,4.24,141.04,141.02,5.38148743]
[1763516427146,9.78882769,141.03,141.02,5.38148743]
[1763516427523,10.48882769,141.03,141.02,5.38148743]
[1763516433329,4.24,141.04,141.02,6.10148743]
[1763516433536,14.02882769,141.04,141.03,5.38148743]
[1763516434768,14.72882769,141.04,141.03,5.38148743]
[1763516435070,9.78882769,141.03,141.02,5.38148743]
[1763516435250,0.7,141.03,140.95,14.02882769]
[1763516435449,9.78882769,141.01,140.99,5.38148743]
[1763516435653,14.02882769,141.0,140.99,5.38148743]
[1763516438153,5.38148743,141.05,140.99,6.10148743]
[1763516438154,9.78882769,141.05,140.99,6.10148743]
[1763516438364,9.78882769,141.05,141.04,5.38148743]
[1763516438566,4.24,141.05,141.04,5.38148743]
[1763516438773,4.24,141.05,141.04,6.10148743]
[1763516438961,4.24,141.07,141.04,6.10148743]
[1763516439157,4.24,141.07,141.06,5.38148743]
[1763516439375,14.02882769,141.07,141.06,5.38148743]
[1763516439869,14.02882769,141.07,141.04,5.38148743]
[1763516439870,9.78882769,141.06,141.04,5.38148743]
[1763516440069,10.48882769,141.06,141.04,5.38148743]
[1763516440277,0.7,141.06,141.05,5.38148743]
[1763516440486,10.48882769,141.06,141.05,5.38148743]
[1763516442470,9.78882769,141.05,141.04,5.38148743]
[1763516443453,9.78882769,141.05,141.03,5.38148743]
[1763516443454,10.47882769,141.05,141.03,5.38148743]
[1763516443653,14.02882769,141.04,140.99,18.83096]
[1763516443855,14.02882769,141.04,141.03,5.38148743]
[1763516449828,14.02882769,141.04,140.97,18.12096]
[1763516449990,14.02882769,141.04,141.03,5.38148743]
[1763516459839,9.78882769,141.03,140.96,4.24]
[1763516460005,9.78882769,141.01,140.99,5.38148743]
[1763516460210,14.02882769,141.0,140.99,5.38148743]
[1763516460425,9.78882769,140.99,140.97,5.38148743]
[1763516460736,9.78882769,140.97,140.94,5.38148743]
[1763516460914,9.78882769,140.95,140.88,0.71]
[1763516461115,14.02882769,140.94,140.93,5.38148743]
[1763516461521,14.71882769,140.94,140.93,5.38148743]
[1763516461731,14.71882769,140.94,140.88,0.71]
[1763516461918,14.71882769,140.94,140.93,5.38148743]
[1763516464032,14.02882769,140.94,140.93,5.38148743]
[1763516468824,14.02882769,140.94,140.93,2.06786016]
[1763516469943,14.71882769,140.94,140.93,2.06786016]
[1763516470145,14.71882769,140.94,140.88,8.27144064]
[1763516470146,9.78882769,140.93,140.92,2.06786016]
[1763516470442,9.78882769,140.93,140.86,0.71]
[1763516470443,10.47882769,140.93,140.86,0.71]
[1763516470744,9.78882769,140.91,140.87,2.06786016]
[1763516470942,9.78882769,140.91,140.84,0.71]
[1763516470943,9.78882769,140.91,140.88,2.06786016]
[1763516471120,9.78882769,140.89,140.88,2.06786016]
[1763516471319,14.02882769,140.89,140.88,2.06786016]
[1763516471639,14.71882769,140.89,140.85,18.12096]
[1763516471948,14.71882769,140.89,140.88,2.06786016]
[1763516472314,14.02882769,140.89,140.88,2.06786016]
[1763516472525,14.02882769,140.89,140.86,0.69]
[1763516472731,14.68882769,140.89,140.85,18.12096]
[1763516472933,14.02882769,140.89,140.88,5.38907268]
[1763516473118,4.24,140.91,140.88,6.07907268]
[1763516473319,4.24,140.91,140.9,5.38907268]
[1763516475250,0.66,140.93,140.9,5.38907268]
[1763516475433,4.9,140.93,140.92,5.38907268]
[1763516476523,9.78882769,140.93,140.92,5.38907268]
[1763516477240,4.24,140.95,140.92,5.38907268]
[1763516477430,4.24,140.95,140.94,5.38907268]
[1763516477431,14.02882769,140.95,140.94,5.38907268]
[1763516478856,14.02882769,140.95,140.94,8.99838146]
[1763516480047,9.78882769,140.95,140.94,8.99838146]
[1763516480840,4.9,140.97,140.94,8.99838146]
[1763516481056,9.78882769,140.96,140.94,0.69]
[1763516481239,10.44882769,140.96,140.91,18.12096]
[1763516481439,10.44882769,140.95,140.94,8.99838146]
[1763516481641,9.78882769,140.94,140.93,8.99838146]
[1763516481841,14.72882769,140.94,140.93,8.99838146]
[1763516482030,14.72882769,140.94,140.89,8.99838146]
[1763516482232,9.78882769,140.92,140.9,8.99838146]
[1763516482449,14.02882769,140.91,140.9,8.99838146]
[1763516482763,4.24,140.93,140.9,8.99838146]
[1763516482942,4.24,140.93,140.92,8.99838146]
[1763516483148,14.72882769,140.95,140.92,8.99838146]
[1763516483360,14.72882769,140.95,140.94,8.99838146]
[1763516483653,14.02882769,140.95,140.94,8.99838146]
[1763516484056,14.72882769,140.95,140.94,8.99838146]
[1763516484666,14.72882769,140.95,140.92,8.99838146]
[1763516484864,9.78882769,140.93,140.92,8.99838146]
[1763516485250,9.78882769,140.93,140.89,18.12096]
[1763516485251,0.7,140.93,140.91,8.99838146]
[1763516485447,14.72882769,140.92,140.91,8.99838146]
[1763516485757,4.24,140.92,140.91,8.99838146]
[1763516485942,4.94,140.94,140.91,8.99838146]
[1763516486142,4.94,140.94,140.93,8.99838146]
[1763516486143,14.72882769,140.94,140.93,8.99838146]
[1763516486470,4.24,140.94,140.93,8.99838146]
[1763516486637,9.78882769,140.96,140.93,8.99838146]
[1763516486970,9.78882769,140.96,140.95,8.99838146]
[1763516488566,10.48882769,140.96,140.95,8.99838146]
[1763516489662,10.48882769,140.96,140.94,27.11934146]
[1763516489868,10.48882769,140.95,140.94,27.11934146]
[1763516490083,9.78882769,140.94,140.91,18.12096]
[1763516490261,9.78882769,140.94,140.93,8.99838146]
[1763516491360,4.24,140.94,140.93,8.99838146]
[1763516492948,14.69882769,140.94,140.93,3.23076718]
[1763516493182,14.69882769,140.94,140.92,3.23076718]
[1763516493183,9.78882769,140.93,140.92,3.23076718]
[1763516493354,10.45882769,140.93,140.92,3.23076718]
[1763516494769,10.45882769,140.93,140.92,9.00237097]
[1763516494992,10.45882769,140.93,140.91,9.00237097]
[1763516495153,10.45882769,140.93,140.88,9.00237097]
[1763516495154,0.67,140.92,140.88,9.00237097]
[1763516495352,9.78882769,140.9,140.88,9.00237097]
[1763516495852,10.45882769,140.89,140.88,9.00237097]
[1763516496159,9.78882769,140.89,140.88,9.00237097]
[1763516498755,10.45882769,140.89,140.88,9.00237097]
[1763516505152,9.78882769,140.89,140.88,9.00237097]
[1763516506668,5.88756968,140.99,140.88,27.12333097]
[1763516506868,9.78882769,140.97,140.94,9.00237097]
[1763516507178,4.24,140.96,140.95,9.00237097]
[1763516507368,4.24,140.96,140.89,4.91]
[1763516507369,4.24,140.96,140.94,9.00237097]
[1763516507571,10.48882769,140.95,140.94,9.00237097]
[1763516509066,9.78882769,140.94,140.93,9.00237097]
[1763516509268,0.7,140.94,140.85,0.67]
[1763516509466,9.78882769,140.92,140.91,9.00237097]
[1763516509669,14.02882769,140.92,140.91,9.00237097]
[1763516509874,14.72882769,140.92,140.91,9.00237097]
[1763516511591,14.72882769,140.92,140.9,9.00237097]
[1763516512090,9.78882769,140.91,140.9,9.00237097]
[1763516516879,9.78882769,140.91,140.9,3.23243429]
[1763516518002,9.78882769,140.9,140.83,0.67]
[1763516518188,9.78882769,140.9,140.87,3.23243429]
[1763516518189,9.78882769,140.88,140.87,3.23243429]
[1763516518384,9.78882769,140.88,140.83,0.67]
[1763516518385,9.78882769,140.88,140.86,3.23243429]
[1763516518588,10.48882769,140.87,140.86,3.23243429]
[1763516519396,9.78882769,140.87,140.86,3.23243429]
[1763516519601,9.78882769,140.89,140.86,3.90243429]
[1763516519810,14.02882769,140.89,140.88,3.23243429]
[1763516521199,4.24,140.89,140.88,3.23243429]
[1763516521401,4.24,140.89,140.88,3.90243429]
[1763516521787,4.24,140.91,140.88,7.13486858]
[1763516521991,4.24,140.91,140.9,3.23243429]
[1763516523017,9.78882769,140.93,140.9,3.23243429]
[1763516523187,4.24,140.92,140.9,0.67]
[1763516523879,0.7,140.95,140.9,0.67]
[1763516524088,4.24,140.94,140.9,0.67]
[1763516524283,14.02882769,140.94,140.93,3.23243429]
[1763516525500,9.78882769,140.93,140.9,3.23243429]
[1763516525703,10.48882769,140.93,140.9,3.23243429]
[1763516525906,9.78882769,140.91,140.9,3.23243429]
[1763516526110,14.02882769,140.91,140.9,3.23243429]
[1763516526310,14.72882769,140.91,140.9,3.23243429]
[1763516528908,14.72882769,140.91,140.9,9.00529668]
[1763516529417,14.72882769,140.91,140.89,9.00529668]
[1763516531410,14.02882769,140.91,140.9,9.00529668]
[1763516531800,4.24,140.91,140.9,9.00529668]
[1763516532208,4.24,140.94,140.9,9.67529668]
[1763516532532,9.78882769,140.93,140.9,0.68]
[1763516533319,4.24,140.94,140.9,0.68]
[1763516533514,14.02882769,140.94,140.93,9.00529668]
[1763516533708,9.78882769,140.93,140.87,4.92]
[1763516534018,10.48882769,140.93,140.91,9.00529668]
[1763516534222,10.48882769,140.92,140.91,9.00529668]
[1763516534804,9.78882769,140.91,140.9,9.00529668]
[1763516535128,14.02882769,140.91,140.9,9.00529668]
[1763516536412,5.41835692,140.95,140.9,9.68529668]
[1763516536637,14.72882769,140.94,140.92,9.00529668]
[1763516536842,14.02882769,140.93,140.91,9.00529668]
[1763516537009,9.78882769,140.92,140.91,9.00529668]
[1763516538238,10.48882769,140.92,140.89,9.00529668]
[1763516538442,9.78882769,140.9,140.89,9.00529668]
[1763516538642,14.02882769,140.9,140.89,9.00529668]
[1763516539931,14.72882769,140.9,140.88,9.00529668]
[1763516540263,9.78882769,140.88,140.84,9.00529668]
[1763516540566,9.78882769,140.88,140.82,0.2]
[1763516540567,9.78882769,140.86,140.82,0.2]
[1763516540870,15.18419417,140.86,140.82,0.2]
[1763516541029,6.09536648,140.85,140.82,0.2]
[1763516541338,9.78882769,140.83,140.82,0.2]
[1763516541727,10.48882769,140.83,140.82,0.2]
[1763516551344,12.56072086,140.83,140.8,0.1]
[1763516551655,22.36096,140.84,140.76,0.1]
[1763516551656,11.86072086,140.81,140.76,0.1]
[1763516551962,9.78882769,140.79,140.76,0.1]
[1763516552170,9.78882769,140.77,140.76,0.1]
[1763516552562,10.46882769,140.77,140.76,0.1]
[1763516552858,9.78882769,140.77,140.76,0.1]
[1763516553260,10.46882769,140.77,140.76,0.1]
[1763516556781,9.78882769,140.77,140.76,0.1]
[1763516557650,4.24,140.77,140.76,0.1]
[1763516559757,0.68,140.83,140.76,18.92096]
[1763516559956,9.78882769,140.82,140.8,2.07189317]
[1763516560156,0.68,140.84,140.81,2.07189317]
[1763516560372,9.78882769,140.82,140.81,2.07189317]
[1763516560671,4.24,140.83,140.8,2.07189317]
[1763516561068,4.92,140.84,140.8,2.77189317]
[1763516561656,4.92,140.84,140.81,2.07189317]
[1763516561866,4.92,140.84,140.81,2.77189317]
[1763516562573,9.78882769,140.83,140.8,0.65]
[1763516562769,10.49882769,140.83,140.76,18.22096]
[1763516562970,10.49882769,140.83,140.79,2.07189317]
[1763516563365,0.71,140.82,140.79,2.07189317]
[1763516563567,0.71,140.82,140.77,0.65]
[1763516563767,0.71,140.82,140.77,2.07189317]
[1763516564092,9.78882769,140.8,140.76,20.94285317]
[1763516564284,4.24,140.81,140.76,20.94285317]
[1763516564581,4.95,140.81,140.77,0.65]
[1763516564786,4.95,140.81,140.77,2.72189317]
[1763516565173,0.71,140.8,140.76,2.17189317]
[1763516565685,0.71,140.8,140.77,0.65]
[1763516565864,0.71,140.8,140.76,2.82189317]
[1763516566368,10.49882769,140.8,140.76,2.82189317]
[1763516566768,9.78882769,140.8,140.77,2.72189317]
[1763516567565,0.71,140.79,140.77,2.07189317]
[1763516570783,9.78882769,140.8,140.77,2.07189317]
[1763516570987,10.49882769,140.8,140.77,2.07189317]
[1763516572994,0.71,140.83,140.79,2.07189317]
[1763516573294,9.78882769,140.82,140.79,2.07189317]
[1763516573512,9.78882769,140.82,140.79,2.72189317]
[1763516574192,9.78882769,140.82,140.8,2.72189317]
[1763516574492,9.78882769,140.82,140.8,2.07189317]
[1763516575589,9.78882769,140.82,140.77,4.24]
[1763516575590,9.78882769,140.84,140.81,2.72189317]
[1763516575766,9.78882769,140.84,140.81,2.07189317]
[1763516575962,10.49882769,140.84,140.81,2.07189317]
[1763516576166,9.78882769,140.84,140.83,2.07189317]
[1763516576366,9.78882769,140.86,140.83,2.07189317]
[1763516576594,9.78882769,140.86,140.84,2.07189317]
[1763516577176,9.78882769,140.86,140.83,2.07189317]
[1763516577386,10.49882769,140.87,140.83,2.07189317]
[1763516577586,10.49882769,140.87,140.83,2.72189317]
[1763516577800,0.71,140.86,140.83,2.72189317]
[1763516578005,0.71,140.86,140.83,2.07189317]
[1763516578374,0.71,140.86,140.83,2.72189317]
[1763516579510,0.71,140.86,140.83,2.07189317]
[1763516580903,0.71,140.86,140.83,2.72189317]
[1763516581125,9.78882769,140.87,140.85,2.07189317]
[1763516581286,2.07189317,140.91,140.84,18.77096]
[1763516581287,0.71,140.9,140.86,2.07189317]
[1763516581609,4.95,140.9,140.86,2.07189317]
[1763516581811,4.95,140.9,140.86,2.72189317]
[1763516582601,9.78882769,140.92,140.89,2.07189317]
[1763516582804,8.94459869,140.95,140.89,0.65]
[1763516583115,9.78882769,140.94,140.9,2.72189317]
[1763516583295,15.20342638,140.94,140.91,2.07189317]
[1763516583502,9.78882769,140.94,140.91,2.07189317]
[1763516583683,9.78882769,140.94,140.92,2.07189317]
[1763516583882,9.78882769,140.94,140.91,0.65]
[1763516583883,10.49882769,140.94,140.91,2.72189317]
[1763516586504,0.71,140.93,140.86,18.12096]
[1763516586710,14.02882769,140.92,140.87,2.07189317]
[1763516586892,14.02882769,140.92,140.87,2.72189317]
[1763516586893,0.71,140.91,140.87,2.72189317]
[1763516588109,0.71,140.91,140.86,2.07189317]
[1763516588620,14.02882769,140.92,140.89,2.07189317]
[1763516588813,14.02882769,140.92,140.9,2.07189317]
[1763516588996,9.78882769,140.93,140.9,2.72189317]
[1763516589199,9.78882769,140.93,140.87,18.12096]
[1763516589200,10.49882769,140.93,140.89,2.07189317]
[1763516589717,10.49882769,140.93,140.89,2.72189317]
[1763516591426,0.71,140.92,140.88,2.07189317]
[1763516591604,9.78882769,140.91,140.87,20.19285317]
[1763516591803,9.78882769,140.91,140.87,20.84285317]
[1763516592019,10.49882769,140.92,140.87,20.84285317]
[1763516592219,10.49882769,140.92,140.88,0.67]
[1763516592731,10.48882769,140.92,140.88,0.67]
[1763516593032,0.7,140.91,140.85,18.79096]
[1763516593536,4.94,140.91,140.86,2.07189317]
[1763516593899,9.78882769,140.89,140.86,2.74189317]
[1763516594212,9.78882769,140.89,140.87,2.07189317]
[1763516596018,4.24,140.91,140.86,2.07189317]
[1763516596331,4.24,140.91,140.85,18.12096]
[1763516596332,0.7,140.89,140.85,2.07189317]
[1763516596735,0.7,140.89,140.85,2.74189317]
[1763516597235,0.7,140.89,140.85,2.07189317]
[1763516597932,0.7,140.89,140.85,2.74189317]
[1763516599615,0.7,140.89,140.85,2.07189317]
[1763516600642,0.7,140.89,140.84,2.74189317]
[1763516600842,0.7,140.89,140.81,18.12096]
[1763516600843,9.78882769,140.87,140.83,3.2356686]
[1763516601236,10.48882769,140.87,140.83,3.9056686]
[1763516603648,10.48882769,140.87,140.83,3.2356686]
[1763516603850,10.48882769,140.87,140.84,0.68]
[1763516604237,10.48882769,140.87,140.81,4.24]